bitfinex-derivatives/quotes_SOLF0:USTF0_20260108
["timestamp","ask_amount","ask_price","bid_price","bid_amount"]
[1767859036269,0.31501038,136.01,135.92,3.24147798]
[1767859039573,0.31501038,136.0,135.92,3.24147798]
[1767859040672,0.31501038,135.99,135.89,93.6317]
[1767859040868,0.31501038,135.99,135.89,96.87317798]
[1767859041064,0.31501038,135.99,135.89,90.24147798]
[1767859041465,6.94221038,135.99,135.9,6.6315]
[1767859041666,6.94221038,135.99,135.9,9.87297798]
[1767859043572,0.31501038,135.99,135.91,6.631]
[1767859044678,0.31501038,135.99,135.92,6.6304]
[1767859044973,0.31501038,136.01,135.92,3.24147798]
[1767859045277,0.31501038,136.01,135.94,6.6296]
[1767859046769,0.31501038,136.01,135.95,6.6291]
[1767859049483,0.31501038,136.01,135.93,6.6299]
[1767859050171,6.94031038,136.03,135.93,6.6299]
[1767859051093,0.31501038,136.02,135.93,6.6299]
[1767859052384,6.94081038,136.02,135.93,6.6299]
[1767859053384,0.31501038,136.02,135.93,6.6299]
[1767859053987,10.17078045,136.04,135.94,6.6296]
[1767859054278,10.17078045,136.04,135.94,3.24147798]
[1767859054279,3.54588045,136.04,135.94,3.24147798]
[1767859054982,6.92920247,136.04,135.95,6.629]
[1767859055180,0.30440247,136.03,135.94,3.24147798]
[1767859055490,0.30440247,136.03,135.91,125.2884]
[1767859055789,0.30440247,136.03,135.93,3.24147798]
[1767859056572,0.30440247,136.03,135.94,6.6296]
[1767859057686,0.30440247,136.02,135.94,6.6296]
[1767859060680,0.30440247,136.02,135.95,6.6291]
[1767859063889,0.30440247,136.02,135.96,6.6286]
[1767859066085,6.92920247,136.04,135.97,6.6281]
[1767859066584,0.30440247,136.03,135.97,6.6281]
[1767859067387,0.30440247,136.03,135.92,109.92307763]
[1767859067977,6.6253,136.03,135.95,6.6291]
[1767859068188,0.30440247,136.02,135.92,6.78267763]
[1767859068590,0.30440247,136.02,135.94,6.6296]
[1767859069290,6.93020247,136.02,135.94,6.6296]
[1767859069584,0.30440247,136.01,135.94,6.6296]
[1767859069788,0.30440247,136.01,135.92,13.41277763]
[1767859069990,6.93080247,136.01,135.92,6.6301]
[1767859071591,6.6268,136.0,135.92,6.6301]
[1767859071797,6.93120247,136.0,135.92,6.6301]
[1767859072290,6.93120247,136.0,135.91,11.83768142]
[1767859072583,6.93120247,136.0,135.91,6.78267763]
[1767859073087,6.93120247,136.0,135.92,6.78267763]
[1767859073284,0.30440247,136.0,135.92,6.78267763]
[1767859073485,0.30440247,136.0,135.9,93.74267763]
[1767859073788,0.30440247,136.0,135.9,6.78267763]
[1767859075576,0.30440247,135.99,135.9,6.78267763]
[1767859078484,0.30440247,135.98,135.9,6.78267763]
[1767859080397,0.30440247,135.97,135.89,13.41477763]
[1767859081601,0.30440247,135.97,135.9,6.6315]
[1767859082890,0.30440247,135.97,135.91,6.6311]
[1767859083094,0.31287816,135.98,135.91,6.6311]
[1767859085898,0.31287816,135.98,135.93,0.04987865]
[1767859095606,5.41011645,135.97,135.93,0.04987865]
[1767859095806,5.41011645,135.96,135.93,0.04987865]
[1767859096001,0.31287816,135.98,135.93,0.04987865]
[1767859096002,5.41011645,135.95,135.93,0.04987865]
[1767859096198,0.3241105,135.97,135.93,0.04987865]
[1767859096398,5.41019114,135.96,135.93,0.04987865]
[1767859096598,5.41019114,135.95,135.93,0.04987865]
[1767859096807,0.3241105,135.97,135.93,0.04987865]
[1767859097006,5.41032439,135.96,135.93,0.04987865]
[1767859097208,5.41032439,135.95,135.93,0.04987865]
[1767859097415,0.3241105,135.97,135.93,0.04987865]
[1767859097594,5.41004626,135.96,135.93,0.04987865]
[1767859097796,5.41004626,135.95,135.93,0.04987865]
[1767859097999,0.3241105,135.97,135.93,0.04987865]
[1767859098208,5.41004626,135.96,135.93,0.04987865]
[1767859098506,5.41004626,135.95,135.93,0.04987865]
[1767859098698,0.3241105,135.97,135.93,0.04987865]
[1767859098899,5.40998492,135.96,135.93,0.04987865]
[1767859099100,0.3241105,135.97,135.93,0.04987865]
[1767859099300,5.40976422,135.96,135.93,0.04987865]
[1767859099501,6.9515105,135.99,135.93,0.04987865]
[1767859099706,5.40946033,135.98,135.93,0.04987865]
[1767859099901,5.40946033,135.97,135.93,6.67997865]
[1767859100110,5.40946033,135.96,135.93,6.67997865]
[1767859100310,0.3241105,135.99,135.93,6.67997865]
[1767859100511,5.40968255,135.98,135.93,6.67997865]
[1767859100713,5.40968255,135.97,135.93,6.67997865]
[1767859101010,5.40968255,135.96,135.9,6.78267763]
[1767859101204,0.3241105,135.98,135.9,6.78267763]
[1767859101513,0.04936231,135.96,135.9,6.78267763]
[1767859102614,0.04936231,135.96,135.9,13.41417763]
[1767859103017,0.04936231,135.96,135.9,6.78267763]
[1767859103319,0.04936231,135.96,135.91,6.631]
[1767859103819,5.41106869,135.95,135.89,6.80723195]
[1767859104011,0.04936231,135.96,135.89,6.80723195]
[1767859104211,5.41168973,135.95,135.89,6.80723195]
[1767859104414,0.3241105,135.97,135.89,6.80723195]
[1767859104614,5.41167767,135.96,135.89,6.80723195]
[1767859104817,0.05580453,135.94,135.89,6.80723195]
[1767859105619,0.05580453,135.94,135.91,6.6311]
[1767859108922,0.05580453,135.94,135.92,6.6306]
[1767859109732,0.00592588,135.94,135.92,6.6306]
[1767859111332,0.00592588,135.94,135.92,8.1106]
[1767859112231,0.00592588,135.94,135.92,6.6306]
[1767859113735,0.00592588,135.94,135.9,6.80723195]
[1767859113736,0.00592588,135.94,135.9,13.43833195]
[1767859113922,0.00592588,135.94,135.89,93.78723195]
[1767859115534,0.00592588,135.94,135.91,6.6311]
[1767859118426,0.00592588,135.94,135.92,6.6303]
[1767859125930,0.00592588,135.94,135.91,6.80723195]
[1767859126134,0.00592588,135.94,135.93,6.6301]
[1767859128942,0.00592588,135.94,135.92,6.80723195]
[1767859129134,0.00592588,135.94,135.91,13.43793195]
[1767859132445,0.00592588,135.94,135.91,6.80723195]
[1767859133943,0.00592588,135.94,135.9,13.43853195]
[1767859137345,0.00592588,135.94,135.91,6.631]
[1767859140841,0.00592588,135.94,135.92,6.6305]
[1767859141146,0.00592588,135.94,135.9,6.80723195]
[1767859141347,0.00592588,135.94,135.9,13.43843195]
[1767859141644,5.7465912,135.93,135.88,6.80723195]
[1767859141850,5.42408465,135.92,135.88,6.80723195]
[1767859142142,5.42408465,135.92,135.86,12.2306151]
[1767859142143,5.42408465,135.92,135.86,6.80723195]
[1767859142343,5.42408465,135.91,135.86,6.80723195]
[1767859143444,0.31762853,135.92,135.86,6.80723195]
[1767859143644,0.31762853,135.92,135.87,6.633]
[1767859145945,0.31762853,135.92,135.85,100.42093195]
[1767859146141,0.31762853,135.92,135.85,93.78723195]
[1767859147640,0.31762853,135.92,135.86,6.6334]
[1767859148959,0.31762853,135.92,135.87,6.6329]
[1767859152956,0.32428009,135.95,135.88,6.6324]
[1767859153264,5.73547281,135.94,135.88,6.6324]
[1767859153450,5.41119272,135.93,135.88,6.6324]
[1767859153759,5.41119272,135.92,135.88,6.6324]
[1767859153945,0.32428009,135.92,135.85,86.98]
[1767859154146,0.32428009,135.9,135.82,3.23694312]
[1767859154349,0.32428009,135.9,135.82,106.45304312]
[1767859154559,0.32428009,135.9,135.85,6.634]
[1767859156266,0.32428009,135.92,135.85,6.634]
[1767859156449,5.74873539,135.91,135.86,6.6335]
[1767859156654,0.32428009,135.91,135.86,6.6335]
[1767859158963,0.32428009,135.93,135.86,6.6335]
[1767859159162,5.42245002,135.92,135.86,6.6335]
[1767859159371,0.32428009,135.93,135.86,6.6335]
[1767859159668,5.42163331,135.92,135.86,6.6335]
[1767859159870,0.32428009,135.93,135.86,6.6335]
[1767859160072,5.42163331,135.92,135.86,6.6335]
[1767859160372,0.32428009,135.93,135.86,6.6335]
[1767859160673,5.42092324,135.92,135.86,6.6335]
[1767859160872,0.32428009,135.93,135.86,6.6335]
[1767859161174,5.42092324,135.92,135.86,6.6335]
[1767859161470,0.32428009,135.93,135.86,6.6335]
[1767859161662,5.42030359,135.92,135.86,6.6335]
[1767859161862,0.32428009,135.93,135.86,6.6335]
[1767859162062,5.42030359,135.92,135.86,6.6335]
[1767859162264,0.32428009,135.93,135.86,6.6335]
[1767859162464,5.41977261,135.92,135.86,6.6335]
[1767859162768,0.32428009,135.93,135.86,6.6335]
[1767859162968,5.41977261,135.92,135.86,6.6335]
[1767859163164,0.32428009,135.93,135.86,6.6335]
[1767859163367,5.41977261,135.92,135.86,6.6335]
[1767859163565,0.32428009,135.93,135.86,6.6335]
[1767859163874,5.41932594,135.92,135.86,6.6335]
[1767859164072,0.32428009,135.93,135.86,6.6335]
[1767859164269,5.41932709,135.92,135.86,6.6335]
[1767859164468,0.32428009,135.93,135.88,0.05078877]
[1767859164768,5.41908966,135.92,135.88,0.05078877]
[1767859164974,0.32428009,135.92,135.84,6.6341]
[1767859165174,0.37539358,135.92,135.84,6.6341]
[1767859165873,5.74351292,135.91,135.85,6.634]
[1767859166067,0.32428009,135.91,135.82,3.23694312]
[1767859166769,0.04662683,135.88,135.82,3.23694312]
[1767859167268,0.04662683,135.88,135.84,6.6345]
[1767859168873,0.32428009,135.93,135.85,6.634]
[1767859169175,5.74301696,135.92,135.85,6.634]
[1767859169474,0.32428009,135.92,135.85,6.634]
[1767859172163,0.32428009,135.92,135.84,3.23694312]
[1767859172164,0.32428009,135.92,135.86,6.6335]
[1767859173263,0.32428009,135.92,135.87,6.633]
[1767859176371,5.42372577,135.91,135.87,6.633]
[1767859176567,0.32428009,135.92,135.87,6.633]
[1767859176773,5.42372577,135.91,135.87,6.633]
[1767859177077,0.32428009,135.92,135.87,6.633]
[1767859177278,5.42372577,135.91,135.85,6.6336]
[1767859177478,0.32428009,135.92,135.85,6.6336]
[1767859177678,5.42487476,135.91,135.85,6.6336]
[1767859177876,0.32428009,135.92,135.85,6.6336]
[1767859178079,5.42487476,135.91,135.85,6.6336]
[1767859178274,0.32428009,135.92,135.85,6.6336]
[1767859178482,5.42617649,135.91,135.85,6.6336]
[1767859178777,0.32428009,135.92,135.85,6.6336]
[1767859178979,5.42617649,135.91,135.86,6.6334]
[1767859179288,0.33135537,135.94,135.83,28.92723195]
[1767859179580,5.75871106,135.93,135.83,28.92723195]
[1767859179782,5.42735569,135.92,135.83,28.92723195]
[1767859179979,5.42735569,135.91,135.84,6.6343]
[1767859180183,0.33135537,135.93,135.84,6.6343]
[1767859180384,5.42735569,135.92,135.84,6.6343]
[1767859180587,5.42735569,135.91,135.84,6.6343]
[1767859180882,0.33135537,135.93,135.84,6.6343]
[1767859181182,5.42869736,135.92,135.84,6.6343]
[1767859181382,5.42869736,135.91,135.84,6.6343]
[1767859181576,0.33135537,135.93,135.84,6.6343]
[1767859181770,5.4302266,135.92,135.84,6.6343]
[1767859181980,5.4302266,135.91,135.84,6.6343]
[1767859182179,0.33135537,135.93,135.84,6.6343]
[1767859182486,5.4302266,135.92,135.84,6.6343]
[1767859182672,5.4302266,135.91,135.84,6.6343]
[1767859182876,0.33135537,135.93,135.84,6.6343]
[1767859183082,5.76334029,135.92,135.84,13.44153195]
[1767859183275,5.43198492,135.91,135.84,13.44153195]
[1767859183478,5.43198492,135.9,135.84,13.44153195]
[1767859183680,0.33135537,135.92,135.84,13.44153195]
[1767859183891,5.43404043,135.91,135.84,13.44153195]
[1767859184083,5.43404043,135.9,135.84,13.44153195]
[1767859184277,0.33135537,135.92,135.84,13.44153195]
[1767859184582,5.4365152,135.91,135.84,13.44153195]
[1767859184779,5.4365152,135.9,135.84,13.44153195]
[1767859184980,0.33135537,135.92,135.85,6.634]
[1767859185180,5.4365152,135.91,135.85,6.634]
[1767859185379,5.4365152,135.9,135.84,6.80723195]
[1767859185582,0.33135537,135.92,135.84,6.80723195]
[1767859185786,5.42697114,135.91,135.84,6.80723195]
[1767859185984,5.42697114,135.9,135.84,6.80723195]
[1767859186179,0.33135537,135.92,135.84,13.44173195]
[1767859186386,5.43032736,135.91,135.84,13.44173195]
[1767859186582,5.43032736,135.9,135.84,13.44173195]
[1767859186782,0.33135537,135.92,135.84,13.44173195]
[1767859186982,5.43044993,135.91,135.84,13.44173195]
[1767859187184,0.33135537,135.92,135.84,13.44173195]
[1767859187185,5.43044993,135.9,135.84,13.44173195]
[1767859187381,0.33135537,135.92,135.84,13.44173195]
[1767859187583,5.43078381,135.91,135.84,13.44173195]
[1767859187783,5.43078381,135.9,135.84,13.44173195]
[1767859187983,0.33135537,135.92,135.84,13.44173195]
[1767859188184,5.43078587,135.91,135.84,13.44173195]
[1767859188384,5.43078587,135.9,135.84,13.44173195]
[1767859188584,0.33135537,135.92,135.84,13.44173195]
[1767859188784,5.4311299,135.91,135.84,13.44173195]
[1767859188986,5.4311299,135.9,135.84,13.44173195]
[1767859189186,0.33135537,135.92,135.84,13.44173195]
[1767859189382,5.4311273,135.91,135.84,13.44173195]
[1767859189689,5.4311273,135.9,135.84,13.44173195]
[1767859189890,0.33135537,135.92,135.84,13.44173195]
[1767859190187,5.43151804,135.91,135.84,13.44173195]
[1767859190382,5.43151804,135.9,135.84,13.44173195]
[1767859190585,0.33135537,135.92,135.84,13.44173195]
[1767859190779,5.76330181,135.91,135.84,13.44173195]
[1767859190980,5.43194644,135.9,135.84,13.44173195]
[1767859194295,5.43194644,135.9,135.85,13.44123195]
[1767859197707,5.43194644,135.9,135.86,6.6335]
[1767859198409,5.43194644,135.89,135.86,6.6335]
[1767859198612,0.33135537,135.91,135.86,6.6335]
[1767859198799,5.43768054,135.9,135.86,6.6335]
[1767859198998,5.43768054,135.89,135.86,6.6335]
[1767859199205,0.33135537,135.91,135.86,6.6335]
[1767859199407,5.43768054,135.9,135.86,6.6335]
[1767859199714,8.054e-05,135.89,135.86,6.6335]
[1767859199908,0.33135537,135.91,135.86,6.6335]
[1767859200505,103.1009,135.98,135.86,6.6335]
[1767859200715,0.33135537,135.94,135.87,6.6328]
[1767859201210,0.33135537,135.94,135.87,13.47456683]
[1767859201609,0.33135537,135.93,135.87,13.47456683]
[1767859202614,0.33135537,135.93,135.87,6.84176683]
[1767859202818,0.33135537,135.93,135.86,6.84176683]
[1767859204009,0.32241619,135.95,135.87,6.84176683]
[1767859204911,0.32241619,135.95,135.85,9.12235577]
[1767859204912,0.32241619,135.95,135.86,6.84176683]
[1767859205117,0.32241619,135.95,135.88,6.84176683]
[1767859205705,0.32241619,135.95,135.87,6.84176683]
[1767859206316,0.32241619,135.95,135.88,6.84176683]
[1767859206816,0.32241619,135.95,135.89,6.6318]
[1767859207211,0.32241619,135.95,135.88,6.84176683]
[1767859208811,6.95161619,135.95,135.88,6.84176683]
[1767859209012,0.32241619,135.95,135.88,6.84176683]
[1767859210017,6.94995708,135.97,135.88,6.84176683]
[1767859210219,0.32135708,135.96,135.88,6.84176683]
[1767859211117,0.32135708,135.95,135.88,6.84176683]
[1767859212314,6.95065708,135.95,135.88,6.84176683]
[1767859214122,0.32135708,135.95,135.89,6.84176683]
[1767859214625,6.95075708,135.95,135.89,6.84176683]
[1767859214818,0.32135708,135.94,135.88,6.84176683]
[1767859219225,0.32135708,135.94,135.87,9.12235577]
[1767859219226,6.95025708,135.96,135.89,6.84176683]
[1767859219415,6.6289,135.96,135.89,6.84176683]
[1767859219619,0.32135708,135.99,135.9,6.84176683]
[1767859219820,0.32135708,135.99,135.91,6.84176683]
[1767859220021,0.32135708,135.99,135.92,6.84176683]
[1767859220323,0.32135708,135.99,135.91,6.84176683]
[1767859220928,0.32135708,135.98,135.91,6.84176683]
[1767859222538,0.32135708,135.97,135.9,6.84176683]
[1767859223230,86.98,136.01,135.91,6.84176683]
[1767859223231,0.32135708,135.99,135.91,6.84176683]
[1767859223931,0.32135708,135.99,135.91,13.47286683]
[1767859224124,0.32135708,135.99,135.91,6.84176683]
[1767859224833,0.32135708,135.99,135.92,6.6306]
[1767859226934,0.32135708,135.99,135.91,6.84176683]
[1767859227227,0.32135708,135.99,135.9,13.47316683]
[1767859227728,0.32135708,135.99,135.91,6.631]
[1767859229536,6.94865708,135.99,135.91,6.631]
[1767859230038,0.32135708,135.98,135.91,6.631]
[1767859231940,6.6273,135.99,135.91,6.631]
[1767859232141,6.93979418,135.99,135.91,6.631]
[1767859232343,6.93979418,135.99,135.9,6.84176683]
[1767859233038,6.93909418,136.01,135.91,6.6309]
[1767859233339,0.31249418,136.0,135.91,6.84176683]
[1767859233841,6.6266,136.01,135.91,6.84176683]
[1767859234047,0.31249418,136.02,135.93,6.63]
[1767859234238,0.31249418,136.02,135.92,6.84176683]
[1767859234438,0.31249418,136.02,135.92,28.96176683]
[1767859235335,0.31249418,136.01,135.92,13.47216683]
[1767859235745,6.93869418,136.01,135.93,6.6301]
[1767859236436,0.31249418,136.01,135.94,6.6295]
[1767859236845,0.31249418,136.03,135.95,6.6291]
[1767859237838,6.93779418,136.03,135.95,6.6291]
[1767859239752,0.31249418,136.03,135.96,6.6286]
[1767859239952,0.31249418,136.03,135.94,103.1254]
[1767859240753,0.31249418,136.03,135.95,6.6288]
[1767859241156,0.31249418,136.03,135.96,6.6285]
[1767859244556,0.31249418,136.03,135.97,6.6281]
[1767859245058,0.31249418,136.05,135.95,103.1175]
[1767859245758,0.31249418,136.05,135.99,6.6271]
[1767859247162,0.31249418,136.04,135.97,6.6277]
[1767859247363,0.31249418,136.04,135.95,103.1175]
[1767859248559,0.31249418,136.04,135.98,6.6276]
[1767859249062,0.31249418,136.11,135.98,104.5752]
[1767859249361,0.31249418,136.11,135.98,190.0552]
[1767859249958,0.31249418,136.08,136.02,6.6257]
[1767859250159,0.31249418,136.12,136.0,103.0824]
[1767859250365,0.31249418,136.12,135.99,190.0497]
[1767859250661,0.31249418,136.11,136.02,6.6254]
[1767859251562,0.31249418,136.11,135.99,190.0497]
[1767859251563,0.31249418,136.1,136.0,6.6263]
[1767859252159,0.31249418,136.1,135.99,86.96]
[1767859252366,0.31249418,136.07,135.99,86.96]
[1767859253462,6.93589418,136.07,135.99,93.5869]
[1767859253850,0.31249418,136.09,135.99,86.96]
[1767859254759,6.6229,136.08,136.0,6.6266]
[1767859254963,6.93539418,136.08,136.0,6.6266]
[1767859255261,6.6234,136.07,135.99,86.96]
[1767859256563,6.6234,136.07,135.99,93.5872]
[1767859258067,0.31249418,136.08,135.99,93.5872]
[1767859260862,0.31249418,136.08,136.0,6.6266]
[1767859261169,0.31249418,136.08,135.99,86.96]
[1767859261170,0.31249418,136.07,135.99,86.96]
[1767859261659,0.31249418,136.07,135.97,103.1027]
[1767859261859,0.31249418,136.07,135.97,190.0227]
[1767859262057,0.31249418,136.09,135.99,103.0906]
[1767859262570,0.31249418,136.09,136.02,6.6257]
[1767859263467,0.31249418,136.09,136.03,6.6252]
[1767859263859,0.31249418,136.09,136.04,6.6246]
[1767859266771,0.31249418,136.09,136.05,6.6243]
[1767859267072,0.30911408,136.11,136.01,103.0748]
[1767859267272,0.30911408,136.11,136.0,103.0801]
[1767859267969,6.93051408,136.11,136.02,6.6256]
[1767859268163,0.30911408,136.11,135.98,190.0146]
[1767859268564,0.30911408,136.09,136.01,6.6262]
[1767859269271,0.30911408,136.09,136.02,6.6257]
[1767859270371,0.30911408,136.09,136.0,6.6263]
[1767859270771,0.30911408,136.09,135.98,93.5473]
[1767859270972,0.30911408,136.09,135.98,86.92]
[1767859272479,6.93171408,136.09,136.0,6.6266]
[1767859273075,0.30911408,136.09,136.0,6.6266]
[1767859274584,0.30911408,136.09,136.01,6.6261]
[1767859274785,6.622,136.1,136.01,6.6261]
[1767859275087,6.93111408,136.1,136.01,6.6261]
[1767859276687,0.30911408,136.1,136.02,6.6257]
[1767859278379,15.56818655,136.13,136.02,22.12]
[1767859278584,15.56818655,136.13,136.04,125.1719]
[1767859278784,15.56818655,136.13,136.05,86.92]
[1767859279380,15.56818655,136.13,136.06,6.6237]
[1767859279689,15.56818655,136.13,136.05,86.92]
[1767859280194,15.56818655,136.13,136.05,93.5439]
[1767859280390,15.56818655,136.13,136.05,86.92]
[1767859281591,15.87730063,136.13,136.05,86.92]
[1767859281793,0.30911408,136.12,136.05,86.92]
[1767859282288,0.30911408,136.12,136.05,93.5442]
[1767859282492,15.56818655,136.13,136.05,86.92]
[1767859283583,15.56818655,136.13,136.06,6.6237]
[1767859283883,15.56818655,136.13,136.05,86.92]
[1767859284391,15.87730063,136.13,136.05,93.544]
[1767859284584,0.30911408,136.12,136.05,93.544]
[1767859285987,15.56818655,136.13,136.05,86.92]
[1767859287591,15.56818655,136.13,136.07,6.6232]
[1767859288392,15.87730063,136.13,136.07,6.6232]
[1767859288696,15.87730063,136.13,136.05,93.5439]
[1767859288995,0.30911408,136.12,136.0,103.0807]
[1767859289297,0.30911408,136.12,135.99,189.967]
[1767859289498,0.30911408,136.12,135.99,103.087]
[1767859289688,0.30911408,136.12,135.99,189.967]
[1767859290295,0.30911408,136.08,136.01,6.6258]
[1767859290495,0.30911408,136.08,135.99,86.88]
[1767859290690,0.30911408,136.08,135.94,103.1267]
[1767859290897,0.30911408,136.08,135.95,86.88]
[1767859291084,0.30911408,136.08,135.94,125.2467]
[1767859291291,0.30911408,136.05,135.97,6.628]
[1767859293193,0.30661363,136.04,135.95,93.5089]
[1767859294295,6.93151363,136.04,135.95,93.5089]
[1767859294801,0.30661363,136.04,135.95,93.5089]
[1767859295501,6.6255,136.03,135.95,86.88]
[1767859295805,0.30661363,136.01,135.91,3.23482626]
[1767859296497,0.30661363,135.99,135.89,3.23482626]
[1767859297300,103.0715,136.02,135.88,190.0912]
[1767859297301,0.30661363,136.01,135.91,3.23482626]
[1767859297700,0.30661363,135.99,135.89,9.86672626]
[1767859298094,0.30661363,135.99,135.89,3.23482626]
[1767859298503,0.30661363,135.99,135.88,86.92]
[1767859298801,0.30661363,135.97,135.88,86.92]
[1767859300306,0.30661363,135.97,135.88,93.5524]
[1767859300499,0.30661363,135.97,135.88,86.92]
[1767859301301,0.30661363,135.96,135.88,86.92]
[1767859301803,0.30661363,135.96,135.85,86.94]
[1767859303712,0.30661363,135.96,135.85,93.5739]
[1767859304608,0.30661363,135.96,135.86,103.1869]
[1767859304913,0.30661363,135.98,135.87,108.2369134]
[1767859305110,0.30661363,135.98,135.88,86.96]
[1767859305703,0.30661363,135.98,135.89,6.6317]
[1767859305906,0.30661363,135.98,135.88,86.96]
[1767859307398,0.30661363,135.98,135.9,6.6314]
[1767859311111,0.30661363,135.98,135.91,6.631]
[1767859312510,0.30661363,135.98,135.89,6.6317]
[1767859312909,0.30661363,135.98,135.88,190.1314]
[1767859313305,0.30661363,135.97,135.88,86.96]
[1767859313511,0.30661363,135.97,135.84,108.2596134]
[1767859313711,0.30661363,135.97,135.84,195.2196134]
[1767859314514,0.30661363,135.94,135.85,6.6337]
[1767859314814,0.30661363,135.94,135.84,195.2196134]
[1767859315016,0.30661363,135.94,135.84,5.0584134]
[1767859315217,6.93571363,135.96,135.85,103.1957]
[1767859315413,0.30661363,135.96,135.87,108.2361134]
[1767859315632,0.30661363,135.98,135.87,108.2361134]
[1767859315807,0.30661363,135.98,135.87,195.2161134]
[1767859316209,0.30661363,135.97,135.9,6.6313]
[1767859316810,0.30661363,135.97,135.91,6.631]
[1767859317504,0.30661363,135.97,135.89,6.6317]
[1767859318315,0.30661363,135.96,135.87,86.98]
[1767859318514,0.30661363,135.95,135.84,5.0584134]
[1767859318717,6.6304,135.93,135.84,5.0584134]
[1767859319017,0.30661363,135.95,135.85,103.1957]
[1767859319408,0.30661363,135.95,135.86,6.6331]
[1767859319607,0.30661363,135.95,135.84,5.0584134]
[1767859320010,6.93581363,135.95,135.84,5.0584134]
[1767859320206,87.26661363,135.98,135.87,5.0584134]
[1767859320411,6.6283,135.97,135.87,5.0584134]
[1767859320804,6.6283,135.97,135.87,11.6911134]
[1767859321008,0.30661363,135.98,135.87,11.6911134]
[1767859321208,0.30661363,135.98,135.87,98.6711134]
[1767859321607,0.30661363,135.98,135.87,120.7911134]
[1767859322114,6.6273,135.99,135.88,6.6323]
[1767859322523,6.6273,135.99,135.88,93.6123]
[1767859322715,6.6273,135.99,135.89,5.0584134]
[1767859323020,0.30034443,136.03,135.92,5.0584134]
[1767859323214,0.30034443,136.03,135.89,125.2848]
[1767859323408,0.30034443,136.03,135.92,5.0584134]
[1767859323614,0.3130689,136.01,135.92,5.0584134]
[1767859324418,0.3130689,136.0,135.9,86.98]
[1767859324623,0.3130689,135.99,135.9,86.98]
[1767859324918,0.3130689,135.97,135.86,86.98]
[1767859325422,0.3130689,135.97,135.84,92.0384134]
[1767859326520,0.3130689,135.97,135.85,103.1964]
[1767859326719,0.3130689,136.0,135.87,103.1814]
[1767859327222,0.3130689,136.0,135.88,86.98]
[1767859327419,0.3130689,135.99,135.88,93.6123]
[1767859327917,0.3130689,135.99,135.89,6.6317]
[1767859328737,0.3130689,135.99,135.89,103.16]
[1767859329222,0.3130689,135.99,135.91,6.6308]
[1767859329634,0.3130689,136.01,135.91,103.1505]
[1767859330223,0.3130689,136.01,135.92,6.6304]
[1767859331119,0.3130689,136.0,135.9,93.6114]
[1767859332221,0.3130689,135.99,135.9,93.6114]
[1767859332829,0.3130689,135.99,135.9,86.98]
[1767859333221,0.3130689,135.99,135.88,6.6323]
[1767859333622,0.3130689,135.98,135.88,6.6323]
[1767859334728,0.3130689,135.98,135.87,86.98]
[1767859335133,6.9413689,135.97,135.87,86.98]
[1767859335322,0.3130689,135.96,135.87,86.98]
[1767859335828,6.9420689,135.96,135.87,86.98]
[1767859337125,6.9420689,135.96,135.87,93.613]
[1767859338132,6.6292,135.95,135.87,93.613]
[1767859338326,0.3130689,135.95,135.87,86.98]
[1767859340536,0.3130689,135.95,135.87,93.613]
[1767859341133,6.629,135.96,135.87,93.613]
[1767859341134,6.629,135.96,135.88,6.6324]
[1767859341331,6.629,135.96,135.87,86.98]
[1767859342134,6.6281,135.98,135.87,93.74877068]
[1767859342334,0.3130689,136.01,135.88,103.1736]
[1767859342539,0.3130689,136.01,135.88,109.94237068]
[1767859343239,0.3130689,135.99,135.89,6.6317]
[1767859344241,6.628,135.98,135.9,6.6313]
[1767859345231,0.3130689,135.99,135.9,6.6313]
[1767859346433,6.9403689,135.99,135.9,6.6313]
[1767859346741,6.9403689,135.99,135.91,6.631]
[1767859347041,6.6268,136.0,135.91,6.631]
[1767859347242,0.3130689,136.0,135.91,6.631]
[1767859348538,0.3130689,135.98,135.89,86.98]
[1767859349643,6.9408689,135.98,135.9,6.6315]
[1767859350645,6.9412689,135.97,135.89,86.98]
[1767859350952,0.3130689,135.96,135.88,6.6322]
[1767859351151,0.3130689,135.96,135.85,86.98]
[1767859351647,0.3130689,135.96,135.84,92.03715371]
[1767859352244,0.32066325,135.94,135.87,6.633]
[1767859352747,0.32066325,135.96,135.84,190.1798]
[1767859353147,6.94986325,135.95,135.88,6.6325]
[1767859353353,0.32066325,135.94,135.88,6.6325]
[1767859353543,0.32066325,135.94,135.84,190.1798]
[1767859354446,6.6284,135.97,135.85,103.1922]
[1767859354652,0.32066325,135.98,135.87,103.1778]